bitfinex/quotes_SOLUSD_20250604
["timestamp","ask_amount","ask_price","bid_price","bid_amount"]
[1749055554873,19.45815154,157.32,157.28,19.45815154]
[1749055557591,19.45815154,157.31,157.27,45.45815154]
[1749055557996,148.1,157.34,157.27,45.45815154]
[1749055558306,19.45815154,157.31,157.27,45.45815154]
[1749055558603,148.1,157.34,157.28,19.45815154]
[1749055558604,19.45815154,157.32,157.28,19.45815154]
[1749055559501,19.45815154,157.33,157.29,19.45815154]
[1749055559707,19.45815154,157.3,157.27,26.0]
[1749055559903,19.45815154,157.28,157.24,38.1078004]
[1749055560100,19.45815154,157.27,157.26,26.0]
[1749055560398,19.45815154,157.27,157.23,19.45815154]
[1749055560796,19.45815154,157.27,157.23,45.45815154]
[1749055561306,19.45815154,157.29,157.25,19.45815154]
[1749055561709,19.45815154,157.3,157.26,45.45815154]
[1749055562204,148.1,157.34,157.28,19.45815154]
[1749055562205,19.45815154,157.32,157.28,19.45815154]
[1749055562414,148.1,157.34,157.28,19.45815154]
[1749055562415,19.45815154,157.33,157.28,19.45815154]
[1749055562602,148.1,157.34,157.28,19.45815154]
[1749055562803,19.45815154,157.33,157.28,19.45815154]
[1749055563501,19.45815154,157.32,157.27,38.1078004]
[1749055564691,19.45815154,157.32,157.28,19.45815154]
[1749055564891,19.45815154,157.31,157.27,19.45815154]
[1749055565409,148.1,157.34,157.27,19.45815154]
[1749055565623,19.45815154,157.31,157.27,19.45815154]
[1749055566298,19.45815154,157.29,157.24,26.0]
[1749055566489,19.45815154,157.28,157.25,26.0]
[1749055567309,19.45815154,157.29,157.25,45.45815154]
[1749055567517,148.1,157.32,157.25,45.45815154]
[1749055567732,19.45815154,157.29,157.25,45.45815154]
[1749055569719,19.45815154,157.3,157.26,19.45815154]
[1749055570125,19.45815154,157.28,157.25,26.0]
[1749055570541,19.45815154,157.26,157.21,1.6058]
[1749055570720,19.45815154,157.25,157.21,21.06395154]
[1749055571016,19.45815154,157.25,157.21,47.06395154]
[1749055571629,19.45815154,157.25,157.21,45.45815154]
[1749055572013,19.45815154,157.26,157.21,45.45815154]
[1749055574452,19.45815154,157.25,157.21,45.45815154]
[1749055577043,19.45815154,157.24,157.21,26.0]
[1749055577774,19.45815154,157.22,157.16,18.79181043]
[1749055577940,19.45815154,157.21,157.17,64.39212354]
[1749055578146,19.45815154,157.21,157.17,64.24996197]
[1749055578949,19.45815154,157.2,157.17,26.0]
[1749055579254,19.45815154,157.23,157.19,19.45815154]
[1749055579677,19.45815154,157.22,157.18,38.1078004]
[1749055582378,19.45815154,157.22,157.17,26.0]
[1749055582379,19.45815154,157.21,157.17,45.45815154]
[1749055583292,19.45815154,157.22,157.18,19.45815154]
[1749055583591,19.45815154,157.21,157.17,45.45815154]
[1749055584757,19.45815154,157.22,157.18,19.45815154]
[1749055585488,19.45815154,157.23,157.19,19.45815154]
[1749055585674,19.45815154,157.22,157.17,64.1078004]
[1749055585910,19.45815154,157.18,157.1,18.79181043]
[1749055586058,19.45815154,157.14,157.1,19.45815154]
[1749055586264,19.45815154,157.12,157.05,0.14216157]
[1749055586561,19.45815154,157.11,157.08,18.64964886]
[1749055587000,19.45815154,157.11,157.05,0.14216157]
[1749055587207,19.45815154,157.1,157.06,18.933972]
[1749055587503,19.45815154,157.08,157.03,5.20969395]
[1749055587699,19.45815154,157.08,157.05,18.64964886]
[1749055588002,19.45815154,157.1,157.05,19.45815154]
[1749055588295,26.0,157.15,157.06,19.45815154]
[1749055588498,19.45815154,157.1,157.06,19.45815154]
[1749055590566,19.45815154,157.11,157.07,19.45815154]
[1749055590971,19.45815154,157.12,157.08,19.45815154]
[1749055591871,26.0,157.14,157.08,19.45815154]
[1749055591872,1.70936157,157.19,157.08,19.45815154]
[1749055592200,19.45815154,157.12,157.08,19.45815154]
[1749055592572,148.1,157.15,157.09,19.45815154]
[1749055592775,19.45815154,157.13,157.09,19.45815154]
[1749055593198,148.1,157.15,157.09,19.45815154]
[1749055593407,148.1,157.15,157.1,19.45815154]
[1749055593587,19.45815154,157.13,157.09,19.45815154]
[1749055593980,148.1,157.15,157.09,19.45815154]
[1749055594175,19.45815154,157.13,157.09,19.45815154]
[1749055595879,19.45815154,157.14,157.1,19.45815154]
[1749055596079,19.45815154,157.14,157.09,19.45815154]
[1749055597488,19.45815154,157.12,157.08,18.64964886]
[1749055597689,19.45815154,157.11,157.05,26.0]
[1749055597892,19.45815154,157.1,157.06,19.45815154]
[1749055598680,19.45815154,157.11,157.06,19.45815154]
[1749055598882,19.45815154,157.11,157.07,19.45815154]
[1749055602599,19.45815154,157.11,157.04,44.933972]
[1749055602809,19.45815154,157.1,157.06,19.45815154]
[1749055603193,19.45815154,157.1,157.04,18.64964886]
[1749055603391,26.0,157.12,157.04,38.1078004]
[1749055603392,19.45815154,157.08,157.04,38.1078004]
[1749055604211,19.45815154,157.09,157.05,19.45815154]
[1749055606911,6.373,157.11,157.01,0.28432314]
[1749055606912,32.373,157.11,157.01,18.79181043]
[1749055607101,19.45815154,157.05,157.01,38.1078004]
[1749055607722,148.1,157.1,157.01,38.1078004]
[1749055607922,19.45815154,157.07,157.02,19.45815154]
[1749055608448,19.45815154,157.06,157.02,19.45815154]
[1749055610327,19.45815154,157.08,157.03,19.45815154]
[1749055610826,19.45815154,157.07,157.01,18.64964886]
[1749055611122,19.45815154,157.05,157.01,38.1078004]
[1749055613747,19.45815154,157.06,157.02,19.45815154]
[1749055614731,19.45815154,157.05,157.01,38.1078004]
[1749055615537,19.45815154,157.04,157.0,26.0]
[1749055615743,19.45815154,157.01,156.94,1.5345]
[1749055616043,19.45815154,156.99,156.94,6.58330423]
[1749055616245,167.55815154,157.04,156.98,19.45815154]
[1749055616422,167.55815154,157.04,157.0,19.45815154]
[1749055617153,148.1,157.04,156.98,18.933972]
[1749055617332,167.55815154,157.04,157.0,19.45815154]
[1749055617535,167.55815154,157.04,156.99,19.45815154]
[1749055617536,19.45815154,157.03,156.99,19.45815154]
[1749055617836,19.45815154,157.02,156.98,38.1078004]
[1749055618046,19.45815154,157.03,156.99,19.45815154]
[1749055619446,148.1,157.04,157.01,19.45815154]
[1749055619626,148.1,157.04,157.0,19.45815154]
[1749055619955,19.45815154,157.03,156.99,19.45815154]
[1749055621867,19.45815154,157.04,157.0,19.45815154]
[1749055622351,19.45815154,157.06,157.02,19.45815154]
[1749055622652,169.06415154,157.08,157.04,19.45815154]
[1749055622833,19.45815154,157.07,157.03,19.45815154]
[1749055623333,148.1,157.08,157.05,19.45815154]
[1749055624733,167.55815154,157.08,157.04,19.45815154]
[1749055624932,19.45815154,157.06,157.02,38.1078004]
[1749055626044,167.55815154,157.08,157.03,19.45815154]
[1749055627055,19.45815154,157.07,157.03,19.45815154]
[1749055627645,19.45815154,157.07,157.02,18.64964886]
[1749055627852,19.45815154,157.07,157.03,19.45815154]
[1749055628238,167.55815154,157.08,157.04,19.45815154]
[1749055628751,167.55815154,157.08,157.06,19.45815154]
[1749055628752,148.1,157.08,157.06,19.45815154]
[1749055629055,174.03035154,157.1,157.06,19.45815154]
[1749055629451,154.5722,157.1,157.06,19.45815154]
[1749055629675,148.1,157.1,157.08,19.45815154]
[1749055629878,148.1,157.1,157.09,19.45815154]
[1749055630155,148.1,157.1,157.05,0.28432314]
[1749055630360,148.1,157.1,157.09,19.45815154]
[1749055631762,167.55815154,157.15,157.09,19.45815154]
[1749055632070,148.1,157.15,157.13,19.45815154]
[1749055632237,167.55815154,157.17,157.13,19.45815154]
[1749055632558,19.45815154,157.16,157.12,19.45815154]
[1749055633155,19.45815154,157.16,157.08,18.933972]
[1749055633348,19.45815154,157.16,157.12,19.45815154]
[1749055634237,167.55815154,157.17,157.12,19.45815154]
[1749055634654,19.45815154,157.16,157.12,19.45815154]
[1749055636157,148.1,157.17,157.13,19.45815154]
[1749055636747,148.1,157.17,157.15,19.45815154]
[1749055637555,26.0,157.19,157.16,19.45815154]
[1749055637760,26.0,157.19,157.12,19.74247468]
[1749055637761,148.1,157.21,157.18,19.45815154]
[1749055638552,148.1,157.21,157.17,19.45815154]
[1749055638774,167.55815154,157.21,157.17,19.45815154]
[1749055639440,148.1,157.21,157.17,19.45815154]
[1749055639639,167.55815154,157.21,157.17,19.45815154]
[1749055639839,148.1,157.21,157.17,19.45815154]
[1749055640038,167.55815154,157.21,157.17,19.45815154]
[1749055640264,167.55815154,157.21,157.14,0.14216157]
[1749055640459,167.55815154,157.21,157.17,19.45815154]
[1749055640661,19.45815154,157.2,157.16,19.45815154]
[1749055641863,167.55815154,157.21,157.17,19.45815154]
[1749055644376,19.45815154,157.2,157.16,45.45815154]
[1749055644558,19.45815154,157.2,157.16,19.45815154]
[1749055645643,167.55815154,157.21,157.16,19.45815154]
[1749055647353,19.45815154,157.2,157.16,19.45815154]
[1749055649851,19.45815154,157.18,157.13,26.0]
[1749055650083,19.45815154,157.17,157.13,45.45815154]
[1749055650264,19.45815154,157.18,157.14,19.45815154]
[1749055650462,167.55815154,157.2,157.15,19.45815154]
[1749055650660,167.55815154,157.2,157.16,19.45815154]
[1749055650661,148.1,157.2,157.16,19.45815154]
[1749055650867,148.1,157.2,157.17,19.45815154]
[1749055651376,148.1,157.2,157.18,19.45815154]
[1749055651951,148.1,157.2,157.14,18.933972]
[1749055652147,148.1,157.2,157.16,19.45815154]
[1749055652148,167.55815154,157.2,157.16,19.45815154]
[1749055653656,167.55815154,157.2,157.15,19.45815154]
[1749055655669,167.55815154,157.2,157.16,19.45815154]
[1749055656372,148.1,157.2,157.16,19.45815154]
[1749055656579,148.1,157.2,157.17,19.45815154]
[1749055657302,148.1,157.2,157.18,19.45815154]
[1749055657506,148.1,157.2,157.19,19.45815154]
[1749055657704,148.1,157.2,157.19,38.1078004]
[1749055658001,148.1,157.2,157.19,18.64964886]
[1749055658180,148.1,157.2,157.19,38.1078004]
[1749055660024,148.1,157.25,157.19,38.1078004]
[1749055660309,148.1,157.25,157.21,19.45815154]
[1749055660692,167.55815154,157.25,157.2,19.45815154]
[1749055660881,19.45815154,157.24,157.2,19.45815154]
[1749055661081,148.1,157.25,157.2,19.45815154]
[1749055661384,19.45815154,157.24,157.2,19.45815154]
[1749055662203,167.55815154,157.25,157.21,19.45815154]
[1749055663501,167.55815154,157.25,157.2,19.45815154]
[1749055665022,7.7092,157.33,157.24,19.45815154]
[1749055665222,19.45815154,157.31,157.26,19.45815154]
[1749055665400,19.45815154,157.3,157.26,19.45815154]
[1749055665819,19.45815154,157.29,157.25,19.45815154]
[1749055666400,174.1,157.32,157.25,19.45815154]
[1749055666602,19.45815154,157.29,157.25,19.45815154]
[1749055667201,19.45815154,157.29,157.24,19.45815154]
[1749055667410,19.45815154,157.28,157.24,19.45815154]
[1749055667905,19.45815154,157.29,157.24,19.45815154]
[1749055668100,19.45815154,157.29,157.22,18.933972]
[1749055668299,174.1,157.32,157.24,19.45815154]
[1749055668507,19.45815154,157.29,157.25,19.45815154]
[1749055669009,19.45815154,157.29,157.22,18.933972]
[1749055669210,148.1,157.36,157.26,18.64964886]
[1749055669411,19.45815154,157.33,157.28,19.45815154]
[1749055669615,148.1,157.35,157.29,19.45815154]
[1749055669616,19.45815154,157.34,157.29,19.45815154]
[1749055669821,19.45815154,157.34,157.3,19.45815154]
[1749055670329,19.45815154,157.32,157.28,19.45815154]
[1749055670529,19.45815154,157.32,157.26,0.28432314]
[1749055670747,19.45815154,157.32,157.27,19.45815154]
[1749055670907,19.45815154,157.32,157.28,19.45815154]
[1749055671105,19.45815154,157.33,157.28,19.45815154]
[1749055672917,19.45815154,157.3,157.25,18.64964886]
[1749055673117,19.45815154,157.3,157.26,19.45815154]
[1749055674548,19.45815154,157.3,157.24,27.5147]
[1749055674549,19.45815154,157.28,157.24,19.45815154]
[1749055676066,19.45815154,157.29,157.25,19.45815154]
[1749055682323,19.45815154,157.3,157.25,19.45815154]
[1749055685935,148.1,157.29,157.25,19.45815154]
[1749055688577,148.1,157.29,157.26,19.45815154]
[1749055689746,148.1,157.29,157.21,18.933972]
[1749055689747,148.1,157.29,157.28,19.45815154]
[1749055689933,148.1,157.34,157.28,19.45815154]
[1749055690139,19.45815154,157.33,157.29,19.45815154]
[1749055691457,45.45815154,157.33,157.29,19.45815154]
[1749055692543,45.45815154,157.33,157.26,18.933972]
[1749055692751,45.45815154,157.33,157.29,19.45815154]
[1749055693137,45.45815154,157.33,157.26,18.933972]
[1749055693138,19.45815154,157.32,157.28,19.45815154]
[1749055693758,19.45815154,157.29,157.25,19.45815154]
[1749055694144,19.45815154,157.3,157.26,19.45815154]
[1749055695275,19.45815154,157.31,157.27,19.45815154]
[1749055695476,167.55815154,157.32,157.28,19.45815154]
[1749055696873,19.45815154,157.31,157.27,19.45815154]
[1749055698494,19.45815154,157.3,157.24,0.28432314]
[1749055698665,19.45815154,157.28,157.24,19.45815154]
[1749055700998,19.45815154,157.29,157.25,19.45815154]
[1749055702501,19.45815154,157.3,157.26,19.45815154]
[1749055703078,19.45815154,157.3,157.25,19.45815154]
[1749055706110,19.45815154,157.26,157.21,1.5761]
[1749055706313,19.45815154,157.22,157.18,19.60031311]
[1749055706477,19.45815154,157.22,157.18,45.07613357]
[1749055706675,19.45815154,157.2,157.14,6.3752]
[1749055707011,19.45815154,157.19,157.15,19.45815154]
[1749055707306,19.45815154,157.19,157.16,18.64964886]
[1749055707800,19.45815154,157.2,157.16,18.64964886]
[1749055708995,19.45815154,157.21,157.16,19.45815154]
[1749055709578,19.45815154,157.2,157.16,19.45815154]
[1749055710792,19.45815154,157.2,157.15,38.53428511]
[1749055711396,19.45815154,157.2,157.16,19.45815154]
[1749055712092,19.45815154,157.21,157.17,19.45815154]
[1749055712293,26.0,157.24,157.18,19.45815154]
[1749055712514,19.45815154,157.22,157.18,19.45815154]
[1749055714520,19.45815154,157.21,157.17,19.45815154]
[1749055715924,148.1,157.23,157.15,19.07613357]
[1749055715925,19.45815154,157.2,157.16,19.45815154]
[1749055717646,19.45815154,157.2,157.15,19.07613357]
[1749055718033,19.45815154,157.2,157.16,19.45815154]
[1749055719749,19.45815154,157.21,157.17,19.45815154]
[1749055720647,148.1,157.23,157.17,19.45815154]
[1749055720838,19.45815154,157.21,157.17,19.45815154]
[1749055722659,19.45815154,157.21,157.15,19.07613357]
[1749055722957,19.45815154,157.21,157.17,19.45815154]
[1749055725745,19.45815154,157.21,157.15,19.07613357]
[1749055725931,19.45815154,157.2,157.15,19.07613357]
[1749055726128,19.45815154,157.2,157.16,19.45815154]
[1749055727531,155.8083,157.23,157.16,19.45815154]
[1749055727737,19.45815154,157.21,157.17,19.45815154]
[1749055729660,19.45815154,157.21,157.15,19.07613357]
[1749055729868,19.45815154,157.21,157.17,19.45815154]
[1749055730656,155.8083,157.23,157.18,19.45815154]
[1749055730657,19.45815154,157.22,157.18,19.45815154]
[1749055730962,167.55815154,157.23,157.18,19.45815154]
[1749055731162,19.45815154,157.22,157.18,19.45815154]
[1749055731364,19.45815154,157.19,157.1,5.04563822]
[1749055731673,175.6542,157.21,157.13,19.45815154]
[1749055731955,175.6542,157.21,157.16,19.45815154]
[1749055731956,169.11235154,157.21,157.16,19.45815154]
[1749055732591,169.11235154,157.21,157.17,19.45815154]
[1749055732892,169.11235154,157.21,157.14,19.07613357]
[1749055732893,169.11235154,157.21,157.14,18.933972]
[1749055733105,19.45815154,157.2,157.16,19.45815154]
[1749055735693,19.45815154,157.2,157.14,18.933972]
[1749055735994,19.45815154,157.2,157.16,19.45815154]
[1749055740095,167.55815154,157.21,157.17,19.45815154]
[1749055740794,148.1,157.21,157.17,19.45815154]
[1749055740990,174.1,157.21,157.17,19.45815154]
[1749055741823,193.55815154,157.21,157.17,19.45815154]
[1749055742019,19.45815154,157.2,157.16,19.45815154]
[1749055742214,19.45815154,157.18,157.14,18.64964886]
[1749055742511,19.45815154,157.19,157.15,19.45815154]
[1749055742714,19.45815154,157.19,157.14,18.64964886]
[1749055742912,19.45815154,157.19,157.14,38.1078004]
[1749055744822,19.45815154,157.2,157.15,19.45815154]
[1749055745629,148.1,157.21,157.15,19.45815154]
[1749055745805,167.55815154,157.21,157.17,19.45815154]
[1749055747298,148.1,157.21,157.17,19.45815154]
[1749055748697,148.1,157.21,157.18,19.45815154]
[1749055749994,148.1,157.21,157.16,18.64964886]
[1749055750224,148.1,157.21,157.18,19.45815154]
[1749055750795,19.45815154,157.19,157.15,38.1078004]
[1749055751118,19.45815154,157.18,157.13,19.45815154]
[1749055751331,148.1,157.21,157.13,19.45815154]
[1749055751530,19.45815154,157.18,157.13,19.45815154]
[1749055752603,19.45815154,157.18,157.14,19.45815154]
[1749055753114,19.45815154,157.19,157.14,19.45815154]
[1749055753321,148.1,157.21,157.18,19.45815154]
[1749055753626,148.1,157.21,157.2,19.45815154]
[1749055755737,148.1,157.21,157.18,26.0]
[1749055756038,148.1,157.21,157.2,19.45815154]
[1749055756221,19.45815154,157.24,157.2,19.45815154]
[1749055757638,7.5461,157.25,157.21,19.45815154]
[1749055757936,27.00425154,157.25,157.21,19.45815154]
[1749055758529,27.00425154,157.25,157.16,2.20864628]
[1749055758530,19.45815154,157.24,157.2,19.45815154]
[1749055759245,19.45815154,157.25,157.21,19.45815154]
[1749055760626,148.1,157.26,157.22,19.45815154]
[1749055760811,167.55815154,157.26,157.22,19.45815154]
[1749055761421,167.55815154,157.26,157.19,18.64964886]
[1749055761422,19.45815154,157.25,157.19,18.64964886]
[1749055761615,19.45815154,157.22,157.18,19.45815154]
[1749055761815,19.45815154,157.21,157.17,38.1078004]
[1749055762017,19.45815154,157.21,157.16,1.64]
[1749055762215,19.45815154,157.2,157.16,21.09815154]
[1749055762476,19.45815154,157.21,157.16,21.09815154]
[1749055762718,19.45815154,157.21,157.17,19.45815154]
[1749055764041,19.45815154,157.22,157.18,19.45815154]
[1749055764429,148.1,157.25,157.18,19.45815154]
[1749055764743,19.45815154,157.22,157.18,19.45815154]
[1749055765533,148.1,157.24,157.21,19.45815154]
[1749055766657,148.1,157.24,157.19,0.42648471]
[1749055766821,148.1,157.24,157.22,19.45815154]
[1749055768921,148.1,157.24,157.21,19.45815154]
[1749055771656,148.1,157.24,157.23,19.45815154]
[1749055771836,167.55815154,157.28,157.23,19.45815154]
[1749055772040,148.1,157.28,157.25,19.45815154]
[1749055774634,148.1,157.28,157.24,19.45815154]
[1749055774845,167.55815154,157.28,157.24,19.45815154]
[1749055775162,148.1,157.28,157.24,19.45815154]
[1749055777751,148.1,157.28,157.26,19.45815154]
[1749055778838,148.1,157.28,157.25,19.45815154]
[1749055783152,148.1,157.28,157.26,19.45815154]
[1749055783644,148.1,157.28,157.23,18.64964886]
[1749055783845,148.1,157.28,157.26,19.45815154]
[1749055784153,148.1,157.28,157.23,18.64964886]
[1749055784346,148.1,157.28,157.26,19.45815154]
[1749055785365,148.1,157.28,157.27,19.45815154]
[1749055785681,19.45815154,157.31,157.27,19.45815154]
[1749055786388,19.45815154,157.29,157.25,19.45815154]
[1749055786668,19.45815154,157.29,157.23,18.64964886]
[1749055786870,19.45815154,157.28,157.23,18.64964886]
[1749055787043,19.45815154,157.27,157.23,38.1078004]
[1749055787444,19.45815154,157.26,157.22,19.45815154]
[1749055787766,19.45815154,157.27,157.22,19.45815154]
[1749055788740,19.45815154,157.27,157.23,19.45815154]
[1749055791472,19.45815154,157.27,157.21,18.79181043]
[1749055791638,19.45815154,157.27,157.23,19.45815154]
[1749055794347,19.45815154,157.24,157.2,19.45815154]
[1749055795344,19.45815154,157.25,157.21,19.45815154]
[1749055795744,167.55815154,157.26,157.22,19.45815154]
[1749055798453,148.1,157.26,157.23,19.45815154]
[1749055800382,148.1,157.26,157.24,19.45815154]
[1749055800583,148.1,157.26,157.25,19.45815154]
[1749055802085,148.1,157.3,157.25,19.45815154]
[1749055802256,148.1,157.3,157.27,19.45815154]
[1749055802453,148.1,157.3,157.25,18.64964886]
[1749055802454,148.1,157.3,157.28,19.45815154]
[1749055802957,148.1,157.3,157.29,19.45815154]
[1749055803662,19.45815154,157.32,157.26,0.42648471]
[1749055803874,19.45815154,157.32,157.27,19.45815154]
[1749055804884,19.45815154,157.31,157.27,19.45815154]
[1749055809470,19.45815154,157.3,157.26,19.45815154]
[1749055810575,19.45815154,157.27,157.23,1.69186157]
[1749055810772,19.45815154,157.26,157.23,18.64964886]
[1749055811085,19.45815154,157.27,157.23,18.64964886]
[1749055812771,1.5951,157.31,157.24,19.45815154]
[1749055812976,1.5951,157.31,157.25,19.45815154]
[1749055812977,19.45815154,157.29,157.25,19.45815154]
[1749055814560,148.1,157.3,157.25,19.45815154]
[1749055814783,19.45815154,157.29,157.25,19.45815154]
[1749055815293,19.45815154,157.28,157.24,19.45815154]
[1749055815661,19.45815154,157.27,157.23,18.64964886]
[1749055815866,19.45815154,157.27,157.23,38.1078004]
[1749055817193,19.45815154,157.28,157.24,19.45815154]
[1749055820774,19.45815154,157.28,157.23,38.1078004]
[1749055821898,19.45815154,157.28,157.24,19.45815154]
[1749055822101,148.1,157.3,157.24,19.45815154]
[1749055822276,19.45815154,157.28,157.24,19.45815154]
[1749055822886,148.1,157.3,157.25,19.45815154]
[1749055823198,19.45815154,157.29,157.25,19.45815154]
[1749055823789,148.1,157.3,157.23,18.64964886]
[1749055823790,167.55815154,157.3,157.26,19.45815154]
[1749055824296,148.1,157.3,157.27,19.45815154]
[1749055824694,148.1,157.34,157.27,0.14216157]
[1749055824899,148.1,157.34,157.31,19.45815154]
[1749055825075,167.55815154,157.34,157.3,19.45815154]
[1749055825271,19.45815154,157.33,157.29,18.64964886]
[1749055826878,19.45815154,157.33,157.29,38.1078004]
[1749055827084,148.1,157.34,157.3,19.45815154]
[1749055827287,148.1,157.34,157.31,19.45815154]
[1749055827607,148.1,157.34,157.29,18.64964886]
[1749055827780,167.55815154,157.34,157.3,19.45815154]
[1749055827981,148.1,157.34,157.3,19.45815154]
[1749055828192,167.55815154,157.34,157.3,19.45815154]
[1749055828382,148.1,157.34,157.3,19.45815154]
[1749055829777,167.55815154,157.34,157.29,38.1078004]
[1749055830000,167.55815154,157.34,157.3,19.45815154]
[1749055832091,19.45815154,157.33,157.29,18.64964886]
[1749055832296,19.45815154,157.33,157.29,38.1078004]
[1749055833184,167.55815154,157.34,157.3,19.45815154]
[1749055835407,130.1,157.34,157.3,19.45815154]
[1749055836089,130.1,157.34,157.31,19.45815154]
[1749055836911,19.45815154,157.35,157.31,19.45815154]
[1749055837395,130.1,157.38,157.31,19.45815154]
[1749055837594,32.3977,157.39,157.31,19.45815154]
[1749055837595,19.45815154,157.35,157.31,19.45815154]
[1749055838198,19.45815154,157.35,157.31,18.64964886]
[1749055839584,19.45815154,157.34,157.31,18.64964886]
[1749055843912,19.45815154,157.34,157.3,19.45815154]
[1749055844210,130.1,157.37,157.26,0.14216157]
[1749055844211,19.45815154,157.31,157.26,0.14216157]
[1749055844392,19.45815154,157.31,157.28,18.64964886]
[1749055845393,26.0,157.33,157.28,19.45815154]
[1749055845394,19.45815154,157.32,157.28,19.45815154]
[1749055845792,156.1,157.36,157.3,19.45815154]
[1749055846090,19.45815154,157.34,157.3,19.45815154]
[1749055846311,19.45815154,157.32,157.28,38.1078004]
[1749055846684,130.1,157.35,157.29,19.45815154]
[1749055846907,19.45815154,157.33,157.29,19.45815154]
[1749055847293,130.1,157.35,157.29,19.45815154]
[1749055847591,19.45815154,157.34,157.3,19.45815154]
[1749055849212,130.1,157.35,157.3,19.45815154]
[1749055849395,19.45815154,157.34,157.31,18.64964886]
[1749055849788,130.1,157.35,157.31,38.1078004]
[1749055849992,149.55815154,157.35,157.31,19.45815154]
[1749055850209,7.9486,157.39,157.31,19.45815154]
[1749055850510,7.9486,157.39,157.32,19.45815154]
[1749055850511,19.45815154,157.36,157.32,19.45815154]
[1749055851517,19.45815154,157.35,157.32,18.64964886]
[1749055852583,19.45815154,157.35,157.31,19.45815154]
[1749055852787,19.45815154,157.34,157.31,18.64964886]
[1749055853292,19.45815154,157.33,157.31,18.64964886]
[1749055853494,19.45815154,157.32,157.27,19.60031311]
[1749055853712,19.45815154,157.31,157.27,38.24996197]
[1749055854618,19.45815154,157.31,157.27,38.1078004]
[1749055854924,19.45815154,157.32,157.28,19.45815154]
[1749055855495,19.45815154,157.32,157.27,18.64964886]
[1749055855806,19.45815154,157.31,157.27,38.1078004]
[1749055856595,19.45815154,157.31,157.27,18.64964886]
[1749055856789,19.45815154,157.31,157.27,38.1078004]
[1749055858222,19.45815154,157.31,157.27,18.64964886]
[1749055858398,19.45815154,157.31,157.27,38.1078004]
[1749055861531,19.45815154,157.28,157.21,1.5032]
[1749055861827,19.45815154,157.25,157.21,20.96135154]
[1749055862126,19.45815154,157.26,157.21,20.96135154]
[1749055862297,19.45815154,157.24,157.18,3.26417597]
[1749055862490,19.45815154,157.24,157.18,26.14216157]
[1749055862691,19.45815154,157.24,157.21,26.0]
[1749055863930,6.6496,157.29,157.22,38.1078004]
[1749055864226,19.45815154,157.26,157.22,38.1078004]
[1749055865322,19.45815154,157.27,157.23,19.45815154]
[1749055865502,19.45815154,157.27,157.24,18.64964886]
[1749055865709,19.45815154,157.28,157.24,19.45815154]
[1749055865909,19.45815154,157.27,157.24,18.64964886]
[1749055866221,19.45815154,157.27,157.22,0.14216157]
[1749055866423,19.45815154,157.26,157.22,64.53428511]
[1749055867936,19.45815154,157.25,157.22,26.0]
[1749055870507,6.6496,157.29,157.22,26.0]
[1749055870712,19.45815154,157.26,157.22,45.45815154]
[1749055871319,19.45815154,157.25,157.22,26.0]
[1749055872239,21.05475154,157.28,157.24,19.45815154]
[1749055872617,19.45815154,157.27,157.23,38.1078004]
[1749055873627,19.45815154,157.26,157.23,18.64964886]
[1749055875145,19.45815154,157.25,157.22,26.0]
[1749055875742,19.45815154,157.24,157.19,19.74247468]
[1749055876049,151.15475154,157.28,157.19,19.74247468]
[1749055876050,19.45815154,157.26,157.21,19.45815154]
[1749055876352,19.45815154,157.24,157.2,45.45815154]
[1749055876838,19.45815154,157.23,157.17,1.5032]
[1749055877045,19.45815154,157.21,157.17,18.64964886]
[1749055877225,19.45815154,157.21,157.17,64.1078004]
[1749055878320,19.45815154,157.19,157.16,18.64964886]
[1749055878818,19.45815154,157.2,157.16,38.1078004]
[1749055879039,19.45815154,157.21,157.17,19.45815154]
[1749055880417,130.1,157.26,157.2,19.45815154]
[1749055880418,19.45815154,157.24,157.2,19.45815154]
[1749055881032,149.55815154,157.26,157.22,19.45815154]
[1749055881662,130.1,157.26,157.21,19.45815154]
[1749055881829,19.45815154,157.25,157.21,19.45815154]
[1749055883848,149.55815154,157.26,157.22,19.45815154]
[1749055885045,130.1,157.26,157.22,19.45815154]
[1749055885241,149.55815154,157.26,157.22,19.45815154]
[1749055887033,130.1,157.26,157.21,19.45815154]
[1749055887239,19.45815154,157.25,157.21,19.45815154]
[1749055889243,149.55815154,157.26,157.22,19.45815154]
[1749055890260,130.1,157.26,157.23,19.45815154]
[1749055890736,130.1,157.26,157.24,19.45815154]
[1749055890930,19.45815154,157.28,157.24,19.45815154]
[1749055891876,19.45815154,157.27,157.23,19.45815154]
[1749055892037,19.45815154,157.25,157.21,19.45815154]
[1749055892649,19.45815154,157.27,157.22,19.45815154]